bitfinex/quotes_SOLUSD_20240905
["timestamp","ask_amount","ask_price","bid_price","bid_amount"]
[1725559716451,7.6494,130.73,130.69,7.6516]
[1725559716966,7.6489,130.74,130.7,28.30836993]
[1725559717745,7.6493,130.73,130.7,19.1276]
[1725559720346,40.0,130.75,130.68,1.09577657]
[1725559720560,7.6497,130.73,130.68,20.22607657]
[1725559720767,7.6497,130.73,130.69,7.6515]
[1725559721954,7.6499,130.72,130.69,7.6515]
[1725559722557,41.91237384,130.75,130.7,20.65759907]
[1725559722860,27.6486,130.75,130.71,9.18015396]
[1725559723055,7.6478,130.76,130.72,9.17914292]
[1725559723253,25.1639,130.79,130.72,9.17914292]
[1725559723254,7.6467,130.78,130.74,7.6484]
[1725559723454,1.91170952,130.77,130.69,65.1878]
[1725559723668,8.34794631,130.76,130.67,69.1309]
[1725559723849,7.6505,130.71,130.67,76.7835]
[1725559724249,7.6505,130.71,130.67,26.7835]
[1725559724560,7.6513,130.7,130.67,19.1309]
[1725559725170,7.3513,130.7,130.67,19.1309]
[1725559725577,7.6518,130.69,130.65,7.6537]
[1725559726077,7.6523,130.68,130.64,26.7895]
[1725559727146,7.6523,130.68,130.65,7.654]
[1725559727755,7.6523,130.68,130.64,26.7895]
[1725559728881,7.6518,130.69,130.65,7.6538]
[1725559729063,7.6523,130.68,130.65,7.6538]
[1725559730176,7.6519,130.69,130.65,7.6538]
[1725559731476,19.1265,130.71,130.63,15.1878]
[1725559731680,73.11952587,130.7,130.61,76.796]
[1725559731878,19.1323,130.67,130.6,19.1423]
[1725559732084,21.91361072,130.66,130.6,19.1423]
[1725559732376,21.91361072,130.66,130.59,65.3752]
[1725559733281,7.6555,130.63,130.59,73.0327]
[1725559733656,7.6559,130.62,130.59,65.3752]
[1725559733850,19.1354,130.65,130.59,65.3752]
[1725559734162,7.6569,130.6,130.56,23.0343]
[1725559734865,1.91419702,130.62,130.56,15.3752]
[1725559734866,7.6576,130.59,130.56,15.3752]
[1725559735179,7.6565,130.61,130.57,1.53141884]
[1725559735572,7.6565,130.61,130.57,9.19001884]
[1725559735756,23.82779388,130.65,130.59,50.0]
[1725559735959,17.38115286,130.67,130.61,57.6563]
[1725559736161,17.38115286,130.67,130.62,1.5308042]
[1725559736162,7.6534,130.66,130.62,1.5308042]
[1725559736364,7.6534,130.66,130.62,9.1864042]
[1725559736885,7.6534,130.66,130.61,57.6562]
[1725559737254,1.91355286,130.67,130.6,19.1421]
[1725559737255,21.04625286,130.67,130.6,19.1421]
[1725559737464,1.91353378,130.65,130.57,19.1463]
[1725559737654,7.6564,130.61,130.57,26.8046]
[1725559737854,1.91413946,130.6,130.49,50.0]
[1725559738066,17.65233998,130.59,130.46,50.0]
[1725559738264,7.6621,130.52,130.48,50.0]
[1725559738494,17.65233998,130.59,130.44,91.9451]
[1725559738495,7.6629,130.5,130.44,91.9451]
[1725559738687,7.6638,130.49,130.44,72.7796]
[1725559738988,7.92902842,130.54,130.44,72.7796]
[1725559739189,65.0,130.53,130.44,72.7796]
[1725559739485,7.6635,130.49,130.44,80.4459]
[1725559739678,7.1635,130.49,130.44,80.4459]
[1725559740184,7.1635,130.49,130.45,1.5327211]
[1725559740479,7.1635,130.49,130.46,1.53272144]
[1725559740679,7.6628,130.51,130.46,59.19772144]
[1725559740883,65.0,130.53,130.49,7.6629]
[1725559740884,20.0,130.53,130.49,7.6629]
[1725559741065,20.0,130.53,130.46,51.53272144]
[1725559741256,20.0,130.57,130.46,51.53272144]
[1725559741458,7.6611,130.53,130.48,76.8229]
[1725559741675,7.6605,130.54,130.49,9.19540812]
[1725559741877,7.6605,130.54,130.5,7.6626]
[1725559742079,7.66,130.55,130.51,7.6621]
[1725559742267,7.66,130.55,130.5,57.6626]
[1725559743384,1.91538807,130.56,130.51,19.1554]
[1725559743585,7.6601,130.55,130.51,26.8174]
[1725559744580,1.91489376,130.58,130.52,58.34435329]
[1725559744787,19.1453,130.59,130.52,57.6616]
[1725559745079,1.91471622,130.58,130.52,57.6616]
[1725559745573,1.91471622,130.58,130.52,50.0]
[1725559745772,21.91471622,130.58,130.52,50.0]
[1725559745970,7.6594,130.56,130.52,57.6616]
[1725559746283,7.6594,130.56,130.52,7.6616]
[1725559749057,20.0,130.56,130.53,7.661]
[1725559749279,21.91489708,130.58,130.54,1.41835923]
[1725559749568,7.6582,130.58,130.55,1.42053351]
[1725559749768,7.657,130.6,130.55,9.07983351]
[1725559750077,23.82932227,130.59,130.54,7.6603]
[1725559750305,1.91465676,130.58,130.53,26.8129]
[1725559750594,21.914897,130.59,130.53,26.8129]
[1725559750982,7.6591,130.57,130.53,19.152]
[1725559751771,27.6583,130.58,130.54,50.0]
[1725559752087,21.914897,130.59,130.57,7.6587]
[1725559752261,21.914897,130.59,130.56,7.6591]
[1725559752570,21.914897,130.59,130.57,1.53148975]
[1725559752774,7.657,130.6,130.57,1.53148975]
[1725559752987,19.1491,130.59,130.57,1.53148975]
[1725559753202,7.657,130.6,130.57,1.53148975]
[1725559753369,1.91436219,130.64,130.57,19.1464]
[1725559753566,19.1491,130.6,130.58,59.03965914]
[1725559754070,19.1491,130.6,130.58,50.0]
[1725559754272,7.6553,130.63,130.58,57.6579]
[1725559754467,9.56946219,130.64,130.6,7.6567]
[1725559754670,19.1491,130.62,130.59,19.1435]
[1725559754878,19.1491,130.62,130.59,26.8008]
[1725559755273,1.91384234,130.65,130.59,26.8008]
[1725559755690,1.91387692,130.64,130.58,7.6577]
[1725559755886,1.91387692,130.64,130.57,24.3079]
[1725559756077,21.05057692,130.64,130.57,16.6494]
[1725559756275,7.6571,130.6,130.57,16.6494]
[1725559756482,21.05057692,130.64,130.57,16.6494]
[1725559756483,7.6566,130.61,130.57,16.6494]
[1725559756687,7.6562,130.62,130.58,7.6581]
[1725559756995,1.91424184,130.63,130.57,16.6494]
[1725559756996,7.6567,130.61,130.57,24.3078]
[1725559757285,36.6061,130.65,130.59,19.1427]
[1725559757696,7.6552,130.63,130.59,26.7997]
[1725559758074,7.6558,130.62,130.59,19.1427]
[1725559758568,7.6554,130.63,130.59,26.8001]
[1725559759292,7.6558,130.62,130.59,19.1427]
[1725559759465,1.91379245,130.64,130.57,16.6494]
[1725559761275,7.6559,130.62,130.58,57.6581]
[1725559761597,7.6553,130.63,130.59,7.6574]
[1725559762290,7.60954289,130.63,130.59,7.6574]
[1725559764387,7.6559,130.62,130.58,26.8027]
[1725559764705,7.6559,130.62,130.58,76.8027]
[1725559765592,7.6559,130.62,130.58,26.8027]
[1725559765772,7.6559,130.62,130.58,76.8027]
[1725559766097,7.6559,130.62,130.58,26.8027]
[1725559766298,1.91402413,130.61,130.57,16.6494]
[1725559766605,7.6579,130.59,130.57,16.6494]
[1725559766795,7.6581,130.58,130.55,6.2408]
[1725559767097,7.6581,130.58,130.55,13.9006]
[1725559767285,1.91453537,130.6,130.55,13.9006]
[1725559767286,7.6577,130.59,130.55,13.9006]
[1725559767481,7.6571,130.6,130.56,26.8075]
[1725559770399,9.57196081,130.59,130.56,19.1482]
[1725559770597,7.6576,130.59,130.56,19.1482]
[1725559772091,7.6571,130.6,130.56,26.8074]
[1725559772493,7.6571,130.6,130.57,1.5314778]
[1725559772694,1.91455901,130.62,130.58,19.1453]
[1725559772908,1.91404078,130.64,130.58,69.1453]
[1725559773100,7.6548,130.64,130.6,26.7986]
[1725559773282,9.56862497,130.64,130.6,26.7986]
[1725559773482,7.6552,130.63,130.6,26.7986]
[1725559773787,7.6552,130.63,130.6,19.1422]
[1725559776489,7.6552,130.63,130.6,26.7991]
[1725559777799,1.91383614,130.64,130.6,26.7991]
[1725559777800,7.6548,130.64,130.6,26.7991]
[1725559778009,20.0,130.63,130.6,26.7991]
[1725559778599,18.5199362,130.65,130.59,15.7751]
[1725559778600,7.6525,130.68,130.64,7.6546]
[1725559778906,7.6525,130.68,130.65,1.53065952]
[1725559779132,7.6525,130.68,130.64,7.6546]
[1725559779296,15.660164,130.68,130.64,7.6546]
[1725559779608,8.007664,130.68,130.65,9.18433979]
[1725559779815,8.007664,130.68,130.66,7.6529]
[1725559779981,8.007664,130.68,130.67,57.6528]
[1725559780498,8.007664,130.68,130.67,7.6528]
[1725559780681,9.56265427,130.72,130.68,7.6522]
[1725559780885,33.0483,130.72,130.68,7.6522]
[1725559781079,7.6508,130.71,130.67,26.7844]
[1725559781303,9.56432294,130.7,130.65,23.4496]
[1725559781987,7.6517,130.69,130.65,23.4496]
[1725559782314,25.3983,130.72,130.63,50.0]
[1725559782315,7.6532,130.67,130.63,7.6547]
[1725559783210,44.5236,130.72,130.64,7.6546]
[1725559783211,7.6524,130.68,130.64,7.6546]
[1725559783508,7.6519,130.69,130.64,7.6546]
[1725559783716,20.0,130.68,130.64,7.6546]
[1725559783915,20.0,130.68,130.65,7.654]
[1725559786121,27.6523,130.68,130.64,7.6544]
[1725559786423,20.0,130.68,130.65,7.6539]
[1725559786597,27.6523,130.68,130.65,7.6539]
[1725559786781,27.6523,130.68,130.64,7.6545]
[1725559786987,1.91321089,130.67,130.62,15.8343]
[1725559787211,7.654,130.65,130.62,15.8343]
[1725559787384,7.654,130.65,130.61,7.6559]
[1725559789312,7.6538,130.66,130.62,7.6556]
[1725559789515,20.0,130.65,130.62,7.6556]
[1725559790083,20.0,130.65,130.64,7.6545]
[1725559790287,1.91356501,130.69,130.62,50.0]
[1725559790493,9.56429179,130.7,130.66,7.6532]
[1725559790694,9.56429179,130.7,130.64,50.0]
[1725559790695,9.56429179,130.7,130.65,28.31909088]
[1725559790891,6.3069,130.68,130.56,16.3018]
[1725559791093,7.656,130.62,130.57,50.0]
[1725559791501,28.31909088,130.63,130.59,50.0]
[1725559792525,28.31909088,130.63,130.61,50.0]
[1725559793622,7.6557,130.62,130.6,6.4778]
[1725559793818,7.6557,130.62,130.56,16.3018]
[1725559793819,7.6557,130.62,130.57,92.15892547]
[1725559794026,28.31909088,130.63,130.57,56.1506]
[1725559794405,28.31909088,130.63,130.57,6.1506]
[1725559794406,1.91403754,130.62,130.57,6.1506]
[1725559794601,7.6586,130.58,130.56,16.3018]
[1725559794906,41.05373754,130.62,130.55,9.20598118]
[1725559794907,7.6587,130.57,130.55,9.20598118]
[1725559795114,7.6587,130.57,130.56,5.75288699]
[1725559795715,7.6602,130.55,130.52,15.8928]
[1725559795904,1.91458441,130.59,130.53,5.75448048]
[1725559795905,7.6604,130.54,130.53,5.75448048]
[1725559796106,7.6604,130.54,130.52,15.8928]
[1725559796720,7.66,130.55,130.52,15.8928]
[1725559800513,7.66,130.55,130.53,1.5319367]
[1725559800712,7.66,130.55,130.52,15.8928]
[1725559800911,21.05682258,130.61,130.53,51.53193806]
[1725559801209,7.6582,130.58,130.54,7.6601]
[1725559801409,7.6582,130.58,130.55,1.53158368]
[1725559801999,21.05637905,130.62,130.56,70.67968324]
[1725559802222,28.31909088,130.63,130.56,70.67968324]
[1725559802409,7.6564,130.61,130.57,7.6586]
[1725559802610,28.31909088,130.63,130.56,51.53158324]
[1725559802901,28.31909088,130.63,130.58,19.1445]
[1725559803102,28.31909088,130.63,130.54,5.75360928]
[1725559803103,7.6582,130.58,130.54,7.6603]
[1725559803317,19.1413,130.61,130.53,7.6607]
[1725559803518,7.6583,130.58,130.53,7.6607]
[1725559804025,7.658,130.59,130.54,76.8109]
[1725559804324,20.0,130.58,130.55,7.6598]
[1725559804530,1.91467004,130.6,130.56,7.6592]
[1725559804531,9.57177004,130.6,130.56,7.6592]
[1725559804823,7.6571,130.6,130.56,7.6592]
[1725559805399,1.91431907,130.62,130.56,7.6592]
[1725559805400,7.6559,130.62,130.58,7.6576]
[1725559805607,30.23346305,130.63,130.59,7.6574]
[1725559805608,37.88916305,130.63,130.59,7.6574]
[1725559805810,28.31909088,130.63,130.6,7.6569]
[1725559806016,35.97429088,130.63,130.6,7.6569]
[1725559806324,35.97429088,130.63,130.59,7.6573]
[1725559807321,7.6558,130.62,130.58,43.3759]
[1725559807829,28.31909088,130.63,130.62,7.6557]
[1725559808341,28.31909088,130.63,130.62,58.767]
[1725559808620,11.65249088,130.63,130.62,58.767]
[1725559810918,11.65249088,130.63,130.62,64.51605126]
[1725559811236,11.65249088,130.63,130.62,58.767]
[1725559811543,11.65249088,130.63,130.62,64.51605126]
[1725559814329,11.65249088,130.63,130.62,19.51605126]
[1725559814631,11.65249088,130.63,130.62,13.767]
[1725559815012,11.65249088,130.63,130.62,19.51638858]
[1725559815420,11.65249088,130.63,130.62,19.51643007]
[1725559816427,11.65249088,130.63,130.62,13.767]
[1725559817110,11.65249088,130.63,130.62,64.51638753]
[1725559817312,11.65249088,130.63,130.62,58.767]
[1725559818635,9.561778,130.74,130.7,7.6509]
[1725559818807,7.6489,130.74,130.71,1.52924871]
[1725559819229,9.56163565,130.73,130.69,26.7799]
[1725559819717,7.6493,130.73,130.69,26.7799]
[1725559820533,9.56282395,130.72,130.68,7.6521]
[1725559820732,7.6505,130.71,130.67,7.6526]
[1725559820929,9.56325526,130.71,130.67,7.6526]
[1725559821141,7.6505,130.71,130.67,7.6526]
[1725559821438,1.91281074,130.73,130.69,7.6516]
[1725559821439,9.56251074,130.73,130.69,7.6516]
[1725559821649,20.0,130.72,130.7,1.53005493]
[1725559822221,27.6499,130.72,130.69,7.6516]
[1725559824744,27.6499,130.72,130.68,26.7823]
[1725559825232,20.0,130.72,130.69,7.6515]
[1725559825742,20.0,130.72,130.69,57.6515]
[1725559826042,7.6511,130.7,130.66,57.653]
[1725559826241,1.91270965,130.74,130.68,50.0]
[1725559826444,9.56190965,130.74,130.7,7.6508]
[1725559826631,20.0,130.73,130.7,7.6508]
[1725559827544,27.6495,130.73,130.69,26.7794]
[1725559827845,27.6495,130.73,130.68,50.0]
[1725559827846,1.91249372,130.72,130.67,19.1321]
[1725559828045,7.6505,130.71,130.67,26.7844]
[1725559828252,7.6505,130.71,130.67,19.1321]
[1725559829155,7.65,130.72,130.68,7.6519]
[1725559829927,9.5621774,130.73,130.69,26.7806]
[1725559830133,20.0,130.72,130.69,26.7806]
[1725559830331,20.0,130.72,130.66,50.0]
[1725559830536,20.0,130.72,130.67,26.7845]
[1725559830537,7.6507,130.71,130.67,26.7845]
[1725559830923,7.6507,130.71,130.68,7.6522]
[1725559831531,7.6517,130.69,130.66,7.6532]
[1725559831827,7.6517,130.69,130.65,7.6534]
[1725559832028,7.6513,130.7,130.66,7.6532]
[1725559832331,7.6521,130.69,130.64,69.1351]
[1725559832534,7.6521,130.69,130.65,7.6537]
[1725559833251,7.6521,130.69,130.66,9.18388311]
[1725559833431,7.6521,130.69,130.66,7.6534]
[1725559833729,7.6521,130.69,130.65,7.6537]
[1725559834345,7.6513,130.7,130.66,9.18370551]
[1725559834629,7.6513,130.7,130.66,7.6533]
[1725559836452,7.6517,130.69,130.66,7.6533]
[1725559837346,45.0,130.73,130.67,7.6523]
[1725559837655,21.91295652,130.72,130.66,26.7868]
[1725559838146,7.6514,130.7,130.66,26.7868]
[1725559838340,9.56436174,130.7,130.66,26.7868]
[1725559838653,7.6523,130.68,130.65,7.6537]
[1725559838849,7.6523,130.68,130.63,19.1367]
[1725559839053,7.6537,130.66,130.63,19.1367]
[1725559839549,7.6541,130.65,130.62,7.6556]
[1725559839753,7.6541,130.65,130.48,28.69714185]
[1725559839754,1.9134733,130.65,130.58,50.0]
[1725559840055,7.6563,130.61,130.58,7.658]
[1725559840446,7.656,130.62,130.58,7.658]
[1725559841538,1.91410221,130.63,130.59,7.6575]
[1725559841539,7.6553,130.63,130.59,7.6575]
[1725559841738,20.0,130.62,130.6,1.53112358]
[1725559842352,20.0,130.62,130.59,7.6575]
[1725559843243,7.6546,130.64,130.61,7.6563]
[1725559843446,7.6546,130.64,130.6,9.18663508]
[1725559843758,20.0,130.63,130.61,1.52981794]
[1725559844459,20.0,130.63,130.6,7.6567]
[1725559844658,20.0,130.63,130.59,19.1435]
[1725559844659,27.6555,130.63,130.59,26.801]
[1725559844965,7.656,130.62,130.59,19.1435]
[1725559845162,1.91410149,130.62,130.56,19.1469]
[1725559845465,7.6577,130.59,130.56,19.1469]
[1725559845665,7.6577,130.59,130.56,26.8061]
[1725559846048,9.57151535,130.6,130.56,26.8061]
[1725559846250,7.6571,130.6,130.56,26.8061]
[1725559846767,7.6571,130.6,130.57,1.53149258]
[1725559847143,7.6571,130.6,130.56,26.8061]
[1725559849265,24.837562,130.62,130.58,7.6576]
[1725559849457,15.2673,130.62,130.59,7.657]
[1725559849644,20.0,130.61,130.58,19.145]
[1725559850679,27.6564,130.61,130.58,19.145]
[1725559851172,20.0,130.61,130.58,19.145]
[1725559851467,20.0,130.62,130.58,19.145]
[1725559851660,21.91411594,130.62,130.58,19.145]
[1725559851961,20.0,130.62,130.58,19.145]
[1725559852361,27.6558,130.62,130.58,26.8029]
[1725559854064,20.0,130.62,130.59,7.6574]
[1725559854563,27.6558,130.62,130.58,26.8028]
[1725559855749,9.57052441,130.61,130.58,26.8028]
[1725559856250,9.57052441,130.61,130.58,19.145]
[1725559857270,7.6564,130.61,130.58,20.66539828]
[1725559857454,7.6569,130.6,130.57,7.6584]
[1725559857658,1.91417385,130.61,130.57,7.6584]
[1725559858169,7.6565,130.61,130.57,7.6584]
[1725559860248,7.6565,130.61,130.57,26.805]
[1725559860454,7.6558,130.62,130.59,7.6575]
[1725559860663,20.0,130.61,130.59,7.6575]
[1725559860957,20.0,130.61,130.58,7.6578]
[1725559861155,27.6564,130.61,130.58,7.6578]
[1725559861372,7.6578,130.59,130.55,26.809]
[1725559861588,21.91469862,130.58,130.53,19.1525]
[1725559861877,7.6599,130.55,130.51,13.41611641]
[1725559862273,9.57571567,130.54,130.5,26.8184]
[1725559862572,7.6605,130.54,130.5,26.8184]
[1725559862772,7.6605,130.54,130.47,15.719]
[1725559862773,7.6625,130.51,130.47,34.8791]
[1725559862977,7.6618,130.52,130.47,26.8242]
[1725559863176,1.91558335,130.51,130.48,7.6638]
[1725559863352,21.91558335,130.51,130.47,19.1601]
[1725559863795,7.6628,130.5,130.47,19.1601]
[1725559864069,1.91532438,130.57,130.5,50.0]
[1725559864272,1.9149719,130.58,130.52,50.0]
[1725559864482,1.9149719,130.58,130.54,7.6604]
[1725559864868,19.142,130.61,130.53,19.1523]
[1725559864869,1.91481783,130.57,130.53,19.1523]
[1725559865078,7.6588,130.57,130.53,26.8131]
[1725559865257,1.91503802,130.56,130.53,26.8131]
[1725559865576,20.0,130.56,130.54,7.6603]
[1725559865757,21.91489817,130.57,130.54,7.1603]
[1725559866667,21.91489817,130.57,130.52,7.6614]
[1725559866668,7.6596,130.56,130.52,7.6614]
[1725559866869,21.91525757,130.55,130.52,7.6614]
[1725559867761,20.0,130.55,130.52,7.6614]
[1725559867981,20.0,130.55,130.53,7.661]
[1725559868157,20.0,130.56,130.53,9.17128409]
[1725559868476,20.0,130.56,130.53,7.661]
[1725559869985,20.0,130.56,130.54,7.6604]
[1725559870162,21.9149219,130.57,130.54,7.6604]
[1725559871660,41.0623219,130.57,130.49,27.31664633]
[1725559871860,7.6601,130.55,130.5,7.6623]
[1725559872177,20.0,130.54,130.5,7.6623]
[1725559872487,20.0,130.54,130.49,25.7847]
[1725559872488,1.91544108,130.53,130.49,19.1575]
[1725559872781,7.6616,130.52,130.49,19.1575]
[1725559872968,7.6616,130.52,130.49,26.8209]
[1725559873473,7.6605,130.54,130.5,9.19488061]
[1725559873677,20.0,130.53,130.5,9.19488061]
[1725559873884,20.0,130.53,130.51,7.6622]
[1725559874377,1.91541689,130.55,130.52,7.6616]
[1725559874570,7.6589,130.57,130.53,7.6609]
[1725559874974,20.0,130.59,130.53,7.6609]
[1725559874975,7.6593,130.56,130.53,7.6609]
[1725559875160,7.6593,130.56,130.52,7.6615]
[1725559876076,20.0,130.55,130.52,7.6615]
[1725559876280,20.0,130.55,130.52,9.19355962]
[1725559876666,20.0,130.55,130.52,7.6615]
[1725559877084,20.0,130.55,130.53,19.1522]
[1725559877382,20.0,130.56,130.53,26.8131]
[1725559877589,27.6593,130.56,130.53,19.1522]
[1725559877880,1.91510219,130.55,130.53,19.1522]
[1725559878887,27.6593,130.56,130.53,26.8132]
[1725559879380,27.6593,130.56,130.53,19.1522]
[1725559880557,1.9150942,130.55,130.53,19.1522]
[1725559880769,27.6593,130.56,130.53,19.1522]
[1725559882190,1.91508831,130.55,130.53,19.1522]
[1725559883982,27.6593,130.56,130.53,19.1522]
[1725559884228,20.0,130.56,130.53,19.1522]
[1725559884388,21.91516181,130.59,130.53,19.1522]
[1725559884579,1.91516181,130.59,130.56,7.6592]
[1725559885382,7.6572,130.6,130.56,7.6592]
[1725559885383,9.57185612,130.6,130.56,7.6592]
[1725559885588,1.91450281,130.62,130.59,7.6575]
[1725559885764,9.56948668,130.63,130.59,7.6575]
[1725559886769,1.91411327,130.62,130.59,7.6575]
[1725559887371,21.91411327,130.62,130.59,7.6575]
[1725559887774,29.56991327,130.62,130.59,7.6575]
[1725559887982,27.6558,130.62,130.59,7.6575]
[1725559889009,20.0,130.62,130.59,7.6575]
[1725559889175,21.91422073,130.62,130.59,7.6575]
[1725559889375,29.57012073,130.62,130.58,7.6579]
[1725559890988,20.0,130.62,130.59,9.18877446]
[1725559892491,20.0,130.62,130.59,7.6574]
[1725559893077,29.56985678,130.62,130.59,7.6574]
[1725559893279,29.56985678,130.62,130.58,26.8018]
[1725559893785,7.6566,130.61,130.57,7.6582]
[1725559894004,9.57147225,130.6,130.57,7.6582]
[1725559894192,1.91447225,130.6,130.57,7.6582]
[1725559896002,20.0,130.62,130.59,7.6575]
[1725559896182,1.91446769,130.61,130.59,7.6575]
[1725559896382,1.91431773,130.63,130.59,7.6575]
[1725559896810,7.6558,130.62,130.58,7.6579]
[1725559897005,21.91432141,130.61,130.58,7.6579]
[1725559897512,1.91432347,130.6,130.57,19.1466]
[1725559897691,7.6578,130.59,130.54,25.8087]
[1725559900092,9.57352473,130.57,130.53,7.6608]
[1725559900284,27.6583,130.58,130.54,7.6603]
[1725559900490,20.0,130.58,130.55,7.6598]
[1725559900702,21.91482023,130.58,130.55,7.6598]
[1725559901010,29.57302023,130.58,130.55,7.6598]
[1725559901509,27.6582,130.58,130.55,7.6598]
[1725559903604,27.6582,130.58,130.54,7.6602]
[1725559907798,9.57343924,130.57,130.54,7.6602]
[1725559908888,29.13641827,130.61,130.57,7.6582]
[1725559908889,1.91483664,130.6,130.57,7.6582]
[1725559909113,7.657,130.6,130.56,26.8059]
[1725559909493,9.57148884,130.6,130.56,26.8059]
[1725559909791,7.657,130.6,130.56,26.8059]
[1725559910289,21.91454542,130.59,130.56,26.8059]
[1725559910697,20.0,130.59,130.56,26.8059]
[1725559912498,20.0,130.59,130.53,50.0]
[1725559912702,44.4511789,130.62,130.53,50.0]
[1725559912906,41.05527527,130.62,130.53,50.0]
[1725559913410,7.6571,130.6,130.56,7.6588]
[1725559913717,20.0,130.59,130.56,7.6588]
[1725559917017,1.91448817,130.58,130.55,26.8079]
[1725559917221,9.57268817,130.58,130.55,19.1483]
[1725559917394,1.91484649,130.57,130.54,7.6603]
[1725559917594,1.91484649,130.57,130.51,50.0]
[1725559917595,21.91484649,130.57,130.51,50.0]
[1725559917925,1.91484649,130.57,130.51,50.0]
[1725559918097,1.91484649,130.57,130.52,19.154]
[1725559918305,9.57364649,130.57,130.54,7.6603]
[1725559918601,21.91503018,130.56,130.53,7.6608]
[1725559919820,21.91503018,130.56,130.52,26.8154]
[1725559920395,7.6606,130.54,130.5,26.8194]
[1725559920714,9.57595253,130.54,130.5,26.8194]
[1725559921226,27.6613,130.53,130.49,7.6634]
[1725559921430,1.9156825,130.52,130.49,7.6634]
[1725559922224,27.6613,130.53,130.49,7.6634]
[1725559922522,27.6613,130.53,130.5,7.6624]
[1725559922523,20.0,130.53,130.5,7.6624]
[1725559922711,20.0,130.53,130.5,9.19479825]
[1725559922911,20.0,130.53,130.5,7.6624]
[1725559923306,20.0,130.53,130.5,7.6626]
[1725559923920,20.0,130.53,130.51,7.6621]
[1725559924124,20.0,130.54,130.51,7.6621]
[1725559927029,20.0,130.54,130.49,69.158]
[1725559927030,27.6605,130.54,130.49,69.158]
[1725559927331,7.6611,130.53,130.5,7.6626]
[1725559928319,9.57659802,130.53,130.5,7.6626]
[1725559928819,9.57655697,130.53,130.5,7.6626]
[1725559929024,7.6611,130.53,130.5,7.6626]
[1725559929827,7.6611,130.53,130.49,19.158]
[1725559930028,9.57655511,130.53,130.49,26.8211]
[1725559930356,9.57655511,130.53,130.47,26.8254]
[1725559930357,7.6623,130.51,130.47,26.8254]
[1725559931207,7.6619,130.52,130.48,7.6638]
[1725559931409,20.0,130.51,130.48,7.6638]
[1725559932532,20.0,130.51,130.48,8.63097741]
[1725559932731,20.0,130.51,130.49,9.1955788]
[1725559932918,20.0,130.52,130.49,7.6631]
[1725559934026,20.0,130.52,130.5,9.19512386]
[1725559934239,9.57611591,130.54,130.5,9.19512386]
[1725559935134,7.6607,130.54,130.5,9.19512386]
[1725559935525,20.0,130.53,130.5,9.19512386]
[1725559936749,20.0,130.53,130.51,19.1553]
[1725559936906,1.91536365,130.55,130.52,7.6616]
[1725559937111,18.1957321,130.61,130.53,1.53218568]
[1725559937329,1.91449717,130.6,130.57,19.1455]
[1725559937743,1.91449717,130.6,130.57,26.804]
[1725559938124,1.91451129,130.63,130.57,19.1455]
[1725559938318,1.91420493,130.64,130.59,19.1435]
[1725559938517,7.6538,130.66,130.61,7.6559]
[1725559938731,1.91388951,130.65,130.61,7.6559]
[1725559942245,9.56788951,130.65,130.61,7.6559]
[1725559942535,20.0,130.64,130.61,7.6559]
[1725559946337,7.6558,130.62,130.58,7.658]
[1725559946521,29.56854919,130.64,130.59,7.6569]
[1725559946723,29.56854919,130.64,130.58,19.1449]
[1725559946724,7.6553,130.63,130.58,19.1449]
[1725559946943,29.56844919,130.64,130.59,7.657]
[1725559947329,29.56844919,130.64,130.59,9.18818991]
[1725559947537,29.56844919,130.64,130.6,7.6569]
[1725559948047,20.0,130.64,130.61,7.6563]
[1725559949341,20.0,130.64,130.6,19.1422]